[Event "EYCC Girls U12 2018"]
[Site "Riga"]
[Date "2018.08.28"]
[Round "8"]
[White "Dakic, Marta"]
[Black "Karacsonyi, Kata"]
[Result "1/2-1/2"]
[ECO "B50"]
[WhiteElo "1614"]
[BlackElo "1961"]
[Annotator "NA RC"]
[PlyCount "110"]
[EventDate "2018.08.20"]
[EventType "swiss"]
[EventCountry "LAT"]
[SourceTitle "playchess.com"]
[Source "ChessBase"]
[SourceQuality "1"]
[TimeControl "40/5400+30:1800+30"]

1. e4 {[%emt 0:00:00]} c5 {[%emt 0:00:00]} 2. Nf3 {[%emt 0:00:00]} d6 {[%emt 0:00:00]} 3. Bc4 {[%emt 0:00:00]} Nc6 {[%emt 0:03:32]} 4. d3 {[%emt 0:01:26]} Nf6 {[%emt 0:02:24]} 5. c3 {[%emt 0:01:20]} g6 {[%emt 0:09:33]} 6. Be3 {[%emt 0:08:06] B50: Sicilian: 2...d6, Miscellaneous} (6. Bb3 Bg7 7. O-O O-O 8. Nbd2 e5 9. Nc4 h6 10. Re1 Be6 11. h3 b5 12. Ne3 Rb8 13. a4 b4 14. Bxe6 fxe6 15. Ng4 Nxg4 16. hxg4 {½-½ (52) Delgado Ramirez,N (2618)-Bologan,V (2648) Baku 2016}) 6... Bg7 {[%emt 0:05:26]} 7. h3 {[%emt 0:02:28]} a6 {[%emt 0:10:34]} 8. Bb3 {[%emt 0:02:08]} b5 {[%emt 0:03:40]} 9. Nbd2 $146 {[%emt 0:04:14]} ({Predecessor:} 9. a3 Bb7 10. Bc2 O-O 11. Qd2 Qb6 12. Bh6 Bxh6 13. Qxh6 {0-1 (44) Mueller,A (1133)-Saar,C (1357) Homburg 2010}) 9... Bb7 {[%emt 0:07:40]} 10. O-O {[%emt 0:01:40]} O-O {[%emt 0:05:49]} 11. Re1 {[%emt 0:08:09]} Rc8 {[%emt 0:03:28]} 12. Bc2 {[%emt 0:12:31]} a5 {[%emt 0:02:46]} 13. Nf1 {[%emt 0:04:54]} Nd7 {[%emt 0:07:41]} 14. Rb1 {[%emt 0:06:04]} Nb6 {[%emt 0:06:06]} 15. Qd2 {[%emt 0:03:52]} Re8 {[%emt 0:00:30]} 16. Bh6 {[%emt 0:03:38]} Bh8 {[%emt 0:01:35]} 17. Ne3 {[%emt 0:02:53]} d5 {[%emt 0:05:48]} 18. exd5 {[%emt 0:00:29]} Nxd5 {[%emt 0:00:35]} 19. Nxd5 {[%emt 0:00:40]} Qxd5 {[%emt 0:00:17]} 20. Bb3 {[%emt 0:00:51]} Qd7 {[%emt 0:04:28]} 21. Qe3 {[%emt 0:08:09]} a4 {[%emt 0:05:07]} 22. Bc2 {[%emt 0:02:58]} Qd5 {[%emt 0:02:37]} 23. a3 {[%emt 0:04:53] [#]} Ne5 $1 {[%emt 0:01:31]} 24. Qe4 {[%emt 0:03:43]} Qxe4 {[%emt 0:03:22]} 25. dxe4 {[%emt 0:00:04]} Nxf3+ {[%emt 0:00:05]} 26. gxf3 {[%emt 0:00:05]} Red8 {[%emt 0:00:39]} 27. Be3 {[%emt 0:00:49]} Be5 {[%emt 0:01:55]} 28. f4 {[%emt 0:00:19]} Bd6 {[%emt 0:00:37]} 29. Red1 {[%emt 0:01:50]} e6 {[%emt 0:00:17]} 30. Rd2 {[%emt 0:01:47]} Kf8 {[%emt 0:01:26]} 31. Rbd1 {[%emt 0:00:14]} Be7 {[%emt 0:02:35]} 32. Rxd8+ {[%emt 0:01:09]} Bxd8 {[%emt 0:00:56]} 33. Bxc5+ {[%emt 0:00:17]} Rxc5 {[%emt 0:02:27]} 34. Rxd8+ {[%emt 0:00:05]} Ke7 {[%emt 0:00:21]} 35. Rd4 {[%emt 0:01:05]} Bc6 {[%emt 0:01:00]} 36. e5 {[%emt 0:04:54]} Bd5 {[%emt 0:00:34]} 37. Be4 {[%emt 0:00:50]} Bxe4 {[%emt 0:00:34]} 38. Rxe4 {[%emt 0:00:06]} Kd7 {[%emt 0:00:27]} 39. Rd4+ {[%emt 0:00:10]} Kc7 {[%emt 0:00:12]} 40. Kg2 {[%emt 0:00:00]} h6 {[%emt 0:00:00]} 41. Kf3 {[%emt 0:01:09]} Kc6 {[%emt 0:22:24]} 42. Ke3 {[%emt 0:07:11]} Rd5 {[%emt 0:03:20]} 43. h4 {[%emt 0:01:03]} h5 {[%emt 0:00:26]} 44. Ke4 {[%emt 0:02:35]} Rc5 {[%emt 0:02:50]} 45. Kd3 {[%emt 0:00:27]} Rd5 {[%emt 0:00:29]} 46. c4 {[%emt 0:00:32]} bxc4+ {[%emt 0:02:03]} 47. Kxc4 {[%emt 0:00:05]} Rc5+ {[%emt 0:00:21]} 48. Kb4 {[%emt 0:00:17]} (48. Kd3 $16) 48... Rb5+ {[%emt 0:00:27]} 49. Kxa4 {[%emt 0:04:05]} Rxb2 {[%emt 0:00:06]} 50. Rd6+ {[%emt 0:00:24]} Kc7 {[%emt 0:00:19]} 51. f3 {[%emt 0:01:24]} Rh2 {[%emt 0:01:13]} 52. Ra6 {[%emt 0:01:04]} Kb7 {[%emt 0:00:17]} 53. Rd6 {[%emt 0:00:22]} Kc7 {[%emt 0:00:06]} 54. Ra6 {[%emt 0:03:58]} Kb7 {[%emt 0:00:30]} 55. Rd6 $19 {[%emt 0:00:40]} Kc7 {[%emt 0:00:07]} 1/2-1/2

[Event "EYCC Girls U12 2018"]
[Site "Riga"]
[Date "2018.08.29"]
[Round "9"]
[White "Karacsonyi, Kata"]
[Black "Alekseenko, Mariya"]
[Result "0-1"]
[ECO "B03"]
[WhiteElo "1961"]
[BlackElo "1750"]
[Annotator "NA"]
[PlyCount "116"]
[EventDate "2018.08.20"]
[EventType "swiss"]
[EventCountry "LAT"]
[SourceTitle "playchess.com"]
[Source "ChessBase"]
[SourceQuality "1"]
[TimeControl "40/5400+30:1800+30"]

1. e4 {[%emt 0:00:00]} Nf6 {[%emt 0:00:00]} 2. e5 {[%emt 0:00:00]} Nd5 {[%emt 0:00:00]} 3. d4 {[%emt 0:00:00]} d6 {[%emt 0:00:00]} 4. c4 {[%emt 0:00:00]} Nb6 {[%emt 0:00:00]} 5. exd6 {[%emt 0:00:08]} cxd6 {[%emt 0:00:05]} 6. Nc3 {[%emt 0:00:07]} Nc6 {[%emt 0:00:36]} 7. Be3 {[%emt 0:01:58]} g6 {[%emt 0:00:16]} 8. Rc1 {[%emt 0:00:09]} Bg7 {[%emt 0:00:09]} 9. b3 {[%emt 0:00:09]} O-O {[%emt 0:00:18]} 10. d5 {[%emt 0:01:46]} Ne5 {[%emt 0:02:29]} 11. Be2 {[%emt 0:00:10]} Ned7 {[%emt 0:10:20]} 12. Qd2 {[%emt 0:07:53] B03: Alekhine's Defence: Four Pawns Attack} (12. Nf3 Nf6 13. h3 Bd7 14. Qd2 Re8 15. O-O a6 16. Rfd1 Nc8 17. b4 b6 18. Nd4 e5 19. dxe6 fxe6 {½-½ (113) Lie,K (2536)-Lie,E (2404) Hamar 2007}) 12... Re8 {[%emt 0:00:25]} 13. Nf3 {[%emt 0:07:36]} Nf6 {[%emt 0:00:06]} 14. h3 $146 {[%emt 0:12:08]} ({Predecessor:} 14. Bh6 Bh8 15. O-O Bg4 16. h3 Bxf3 17. Bxf3 Nbd7 18. Be4 Nh5 19. Be3 Ng7 {1-0 (32) Borowy,C (2027)-Kosny,M (1852) Warsaw 2018}) 14... e5 {[%emt 0:04:11]} 15. dxe6 {[%emt 0:09:58]} Bxe6 {[%emt 0:00:10]} 16. O-O {[%emt 0:07:53]} d5 17. c5 {[%emt 0:00:33]} Nbd7 {[%emt 0:00:48]} 18. b4 {[%emt 0:17:46]} Rc8 {[%emt 0:04:04]} 19. Bg5 {[%emt 0:06:37]} a6 {[%emt 0:03:54]} 20. Rfd1 {[%emt 0:03:24]} Nb8 {[%emt 0:04:03]} 21. Nd4 {[%emt 0:06:09]} Qd7 {[%emt 0:01:35]} 22. Be3 {[%emt 0:02:54]} Red8 {[%emt 0:08:03]} 23. Qc2 {[%emt 0:04:00]} Qc7 {[%emt 0:11:11]} 24. a4 {[%emt 0:02:43]} Re8 $16 {[%emt 0:01:57]} 25. Bf3 {[%emt 0:01:04]} Rcd8 {[%emt 0:00:14]} 26. Qd2 {[%emt 0:03:07]} Nc6 {[%emt 0:00:39]} 27. Bf4 {[%emt 0:02:17]} Qd7 {[%emt 0:00:13]} 28. Nce2 {[%emt 0:02:33]} Ne4 {[%emt 0:09:04]} 29. Qe3 {[%emt 0:00:51]} Nxb4 {[%emt 0:04:43]} 30. Bxe4 {[%emt 0:00:30]} dxe4 {[%emt 0:00:36]} 31. Nxe6 {[%emt 0:00:32]} Qxe6 {[%emt 0:00:37]} 32. Bd6 {[%emt 0:00:24]} Be5 {[%emt 0:02:21]} 33. Nd4 {[%emt 0:00:35]} Qf6 {[%emt 0:00:31]} 34. Bxe5 {[%emt 0:00:31]} Qxe5 {[%emt 0:00:08]} 35. Ne2 {[%emt 0:00:29]} Nd3 {[%emt 0:00:11]} 36. Rc4 {[%emt 0:00:33]} Nxc5 {[%emt 0:00:59]} 37. Rb1 {[%emt 0:00:25]} b6 {[%emt 0:01:18]} 38. a5 {[%emt 0:00:26]} Rd3 {[%emt 0:00:30]} 39. Qf4 {[%emt 0:00:37]} b5 {[%emt 0:00:28]} 40. Rc2 {[%emt 0:00:00]} Qd5 {[%emt 0:00:00]} 41. Qc1 {[%emt 0:06:51]} Nb3 {[%emt 0:05:38]} 42. Qe1 {[%emt 0:04:54]} Qd6 {[%emt 0:00:54]} 43. Ng3 {[%emt 0:04:41]} f5 {[%emt 0:01:44]} 44. Rcb2 {[%emt 0:01:57]} Nd2 {[%emt 0:00:14]} 45. Rc1 {[%emt 0:03:07]} Nc4 {[%emt 0:00:10]} 46. Rbc2 {[%emt 0:00:11]} Re7 {[%emt 0:02:42]} 47. Nf1 {[%emt 0:01:36]} f4 {[%emt 0:00:27]} 48. Re2 {[%emt 0:00:45]} Rd4 {[%emt 0:01:20]} 49. Nh2 {[%emt 0:00:39]} e3 {[%emt 0:03:23]} 50. Nf3 {[%emt 0:00:42]} Rd3 {[%emt 0:00:33]} 51. fxe3 {[%emt 0:01:31]} fxe3 {[%emt 0:01:03]} 52. Qh4 {[%emt 0:01:22]} Kg7 {[%emt 0:02:42]} 53. Rf1 {[%emt 0:01:30]} Nd2 {[%emt 0:00:38]} 54. Nxd2 {[%emt 0:02:45]} Rxd2 {[%emt 0:00:09]} 55. Rfe1 {[%emt 0:00:31]} Rd4 {[%emt 0:01:32]} 56. Qg5 {[%emt 0:00:31]} h6 {[%emt 0:00:04]} 57. Rxe3 {[%emt 0:00:08]} hxg5 {[%emt 0:00:29]} 58. Rxe7+ {[%emt 0:00:05]} Kf6 {[%emt 0:00:05]} 0-1

[Event "EYCC Girls U12 2018"]
[Site "Riga"]
[Date "2018.08.29"]
[Round "9"]
[White "Kozachenko, Maria"]
[Black "Gaal, Zsoka"]
[Result "1-0"]
[ECO "B04"]
[WhiteElo "1792"]
[BlackElo "2008"]
[Annotator "NA"]
[PlyCount "189"]
[EventDate "2018.08.20"]
[EventType "swiss"]
[EventCountry "LAT"]
[SourceTitle "playchess.com"]
[Source "ChessBase"]
[SourceQuality "1"]
[TimeControl "40/5400+30:1800+30"]

1. e4 {[%emt 0:00:00]} Nf6 {[%emt 0:00:00]} 2. e5 {[%emt 0:00:00]} Nd5 {[%emt 0:00:06]} 3. d4 {[%emt 0:00:00]} d6 {[%emt 0:00:07]} 4. Nf3 {[%emt 0:00:09]} g6 {[%emt 0:00:13]} 5. Be2 {[%emt 0:01:08]} Bg7 {[%emt 0:00:23]} 6. h3 {[%emt 0:02:31]} O-O {[%emt 0:01:27]} 7. c4 {[%emt 0:02:17]} Nb6 {[%emt 0:00:14]} 8. O-O {[%emt 0:01:01]} Bf5 {[%emt 0:07:41]} 9. exd6 {[%emt 0:05:35]} cxd6 {[%emt 0:03:06]} 10. Nc3 {[%emt 0:03:44]} Nc6 {[%emt 0:06:21] LiveBook: 180 Games} 11. a3 {[%emt 0:02:20] B04: Alekhine's Defence: 4 Nf3} (11. Be3 d5 12. c5 Nc4 13. Bc1 b6 14. cxb6 axb6 15. Qb3 e6 16. Bxc4 Na5 17. Qd1 Nxc4 18. Qe2 h5 19. Bg5 f6 20. Bf4 g5 21. Bh2 Qd7 22. b3 Na3 {0-1 (57) Liang,A (2569)-Gareyev,T (2595) Middleton 2018}) 11... Re8 $146 {[%emt 0:08:31]} ({Predecessor:} 11... a6 12. Be3 d5 13. g4 Be6 14. c5 Nc4 15. Bxc4 dxc4 16. d5 Bxc3 17. dxc6 Bxb2 18. cxb7 Bxa1 19. Qxa1 {0-1 (41) Lisnyak,V (2177)-Baidetsky,V (2391) Vinnytsia 2018}) 12. Be3 {[%emt 0:04:42]} d5 {[%emt 0:08:12]} 13. c5 {[%emt 0:01:22]} Nc4 {[%emt 0:01:33]} 14. b3 {[%emt 0:02:35]} (14. Qb3 $11) 14... Nxe3 {[%emt 0:01:36]} 15. fxe3 {[%emt 0:00:07]} e5 {[%emt 0:07:10]} 16. Bb5 {[%emt 0:12:22]} e4 {[%emt 0:12:24]} 17. Ne1 {[%emt 0:04:16]} Be6 {[%emt 0:09:20]} 18. Kh1 {[%emt 0:05:26]} Qh4 {[%emt 0:07:04]} 19. Qd2 {[%emt 0:06:32]} Bh6 {[%emt 0:04:19]} 20. Nc2 {[%emt 0:01:27]} Rf8 {[%emt 0:03:32]} 21. Bxc6 {[%emt 0:01:49]} bxc6 {[%emt 0:00:04]} 22. Qf2 {[%emt 0:00:20]} Qh5 {[%emt 0:08:04]} 23. Ne2 {[%emt 0:02:07]} Bd7 {[%emt 0:05:42]} 24. Nf4 {[%emt 0:07:47]} Qg5 {[%emt 0:00:37]} 25. Kh2 {[%emt 0:02:02]} f5 {[%emt 0:01:13]} 26. g3 {[%emt 0:01:54]} Qe7 {[%emt 0:00:30]} 27. Qg2 {[%emt 0:02:06]} Kh8 {[%emt 0:00:47]} 28. Rf2 {[%emt 0:04:05]} Rf7 {[%emt 0:00:41]} 29. h4 {[%emt 0:02:11]} Rg8 {[%emt 0:02:26]} 30. Qh3 {[%emt 0:01:42]} Bc8 {[%emt 0:01:02]} 31. Rg1 {[%emt 0:05:49]} Qc7 {[%emt 0:00:19]} 32. Kh1 {[%emt 0:01:36]} Kg7 {[%emt 0:00:26]} 33. b4 {[%emt 0:01:53]} Kf8 {[%emt 0:00:34]} 34. a4 {[%emt 0:00:56]} Bxf4 {[%emt 0:00:05]} 35. gxf4 {[%emt 0:00:47]} Ba6 {[%emt 0:00:44]} 36. Rfg2 {[%emt 0:03:24]} Rfg7 {[%emt 0:00:43]} 37. Na3 {[%emt 0:01:56]} Bd3 {[%emt 0:00:28]} 38. Qg3 {[%emt 0:02:45]} Qd8 {[%emt 0:00:31]} 39. Qe1 {[%emt 0:01:27]} a6 {[%emt 0:00:12]} 40. Qg3 {[%emt 0:00:00]} Qe7 {[%emt 0:00:00]} 41. Nb1 {[%emt 0:08:01]} Qd8 {[%emt 0:14:22]} 42. Rb2 {[%emt 0:06:27]} h6 {[%emt 0:02:03]} 43. Qh3 {[%emt 0:02:29]} Qd7 {[%emt 0:01:01]} 44. Nc3 {[%emt 0:01:53]} Ke8 {[%emt 0:05:43]} 45. Rf2 {[%emt 0:03:22]} Kd8 {[%emt 0:02:01]} 46. Nd1 {[%emt 0:01:49]} Qb7 {[%emt 0:02:06]} 47. Rb2 {[%emt 0:01:06]} Qd7 {[%emt 0:03:36]} 48. Rf2 {[%emt 0:02:01]} Qe7 {[%emt 0:00:56]} 49. Nb2 {[%emt 0:04:13]} Qe6 {[%emt 0:00:25]} 50. Kh2 {[%emt 0:01:30]} Rb7 {[%emt 0:01:26]} 51. Nxd3 {[%emt 0:01:47]} exd3 {[%emt 0:00:01]} 52. Rb2 {[%emt 0:00:28]} Re8 {[%emt 0:01:54]} 53. Rg3 {[%emt 0:01:56]} Rg8 {[%emt 0:01:15]} 54. Qg2 {[%emt 0:00:52]} Qf6 {[%emt 0:00:46]} 55. Qh3 {[%emt 0:01:27]} Ke8 {[%emt 0:00:33]} 56. Rgg2 {[%emt 0:01:07]} Qe6 {[%emt 0:00:29]} 57. Rb3 {[%emt 0:01:02]} Kf7 {[%emt 0:00:44]} 58. Rd2 {[%emt 0:01:15]} Rgb8 {[%emt 0:00:16]} 59. Rdb2 {[%emt 0:01:33]} Qe4 {[%emt 0:00:32]} 60. Kg1 {[%emt 0:00:43]} d2 {[%emt 0:00:27]} 61. Rxd2 {[%emt 0:00:06]} Rxb4 {[%emt 0:00:03]} 62. Rxb4 {[%emt 0:00:07]} Rxb4 {[%emt 0:00:05]} 63. Kf2 {[%emt 0:00:29]} Rb1 {[%emt 0:00:49]} 64. h5 {[%emt 0:00:45]} Qe6 {[%emt 0:00:14]} 65. Re2 {[%emt 0:00:43]} Kg7 {[%emt 0:00:47]} 66. Qg2 {[%emt 0:00:41]} Kh7 {[%emt 0:00:17]} 67. hxg6+ {[%emt 0:00:12]} Qxg6 {[%emt 0:00:09]} 68. Qxg6+ {[%emt 0:00:14]} Kxg6 {[%emt 0:00:01]} 69. Ra2 {[%emt 0:00:24]} Rb3 {[%emt 0:00:14]} 70. Kf3 {[%emt 0:00:18]} h5 $2 {[%emt 0:00:52] [#]} (70... a5 $11 {and Black has nothing to worry.}) 71. Rg2+ $1 {[%emt 0:00:30]} Kf6 {[%emt 0:00:18] [#]} 72. Rh2 $2 {[%emt 0:00:13]} ({White should try} 72. Rg8 $1 $18) 72... Ra3 {[%emt 0:02:12]} 73. Rxh5 {[%emt 0:00:10]} Kg6 {[%emt 0:00:45]} 74. Rh8 {[%emt 0:00:32]} Rxa4 {[%emt 0:00:23]} 75. Rc8 {[%emt 0:00:15]} a5 {[%emt 0:00:28]} 76. Rxc6+ {[%emt 0:00:16]} Kf7 {[%emt 0:00:18]} 77. Rd6 {[%emt 0:00:46]} Rc4 {[%emt 0:00:12]} 78. Rxd5 {[%emt 0:00:33]} Ke6 {[%emt 0:00:18]} 79. Rd6+ {[%emt 0:00:22]} Ke7 {[%emt 0:00:08]} 80. Ra6 {[%emt 0:00:21]} a4 {[%emt 0:00:08]} 81. Ke2 {[%emt 0:00:36]} Kd7 {[%emt 0:00:39]} 82. Kd3 {[%emt 0:00:28]} Rb4 {[%emt 0:00:03]} 83. d5 {[%emt 0:00:42]} Rb3+ {[%emt 0:00:16]} 84. Kc4 {[%emt 0:00:30]} Rxe3 {[%emt 0:00:08]} 85. Rxa4 {[%emt 0:00:06]} Rf3 {[%emt 0:00:18]} 86. Kb5 {[%emt 0:00:32]} Rb3+ {[%emt 0:00:13]} 87. Rb4 {[%emt 0:00:19]} Rd3 {[%emt 0:00:11]} 88. d6 {[%emt 0:00:29]} Rd5 {[%emt 0:00:17]} 89. Ra4 {[%emt 0:00:49]} Rd1 {[%emt 0:00:16]} 90. Ra7+ {[%emt 0:00:12]} Ke6 {[%emt 0:00:37]} 91. Kc6 {[%emt 0:00:28]} Rd4 {[%emt 0:00:18]} 92. Re7+ $2 {[%emt 0:00:43]} (92. d7 Ke7 93. Kb6) 92... Kf6 {[%emt 0:00:02]} 93. Re1 {[%emt 0:00:34]} Rxf4 {[%emt 0:00:32]} 94. d7 {[%emt 0:00:34]} Rd4 {[%emt 0:00:12]} 95. Re8 {[%emt 0:00:35]} 1-0

[Event "EYCC Girls U12 2018"]
[Site "Riga"]
[Date "2018.08.29"]
[Round "9"]
[White "Anacoglu, Cisel"]
[Black "Shubenkova, Veronika"]
[Result "1-0"]
[ECO "C14"]
[WhiteElo "1734"]
[BlackElo "1700"]
[Annotator "NA"]
[PlyCount "143"]
[EventDate "2018.08.20"]
[EventType "swiss"]
[EventCountry "LAT"]
[SourceTitle "playchess.com"]
[Source "ChessBase"]
[SourceQuality "1"]
[TimeControl "40/5400+30:1800+30"]

1. e4 {[%emt 0:00:00]} e6 {[%emt 0:03:29]} 2. d4 {[%emt 0:00:00]} d5 {[%emt 0:02:31]} 3. Nc3 {[%emt 0:05:49]} Nf6 {[%emt 0:01:13]} 4. Bg5 {[%emt 0:00:06]} Be7 {[%emt 0:00:18]} 5. e5 {[%emt 0:00:05]} Nfd7 {[%emt 0:02:42]} 6. Bxe7 {[%emt 0:00:05]} Qxe7 {[%emt 0:00:07]} 7. f4 {[%emt 0:00:08]} a6 {[%emt 0:00:12]} 8. Nf3 {[%emt 0:00:12]} O-O {[%emt 0:04:37]} 9. Qd2 {[%emt 0:01:14]} c5 {[%emt 0:00:46]} 10. dxc5 {[%emt 0:01:00]} Nxc5 {[%emt 0:00:15]} 11. O-O-O {[%emt 0:01:42]} b5 {[%emt 0:00:38]} 12. Bd3 {[%emt 0:02:13]} b4 {[%emt 0:01:25]} 13. Ne2 {[%emt 0:06:08]} a5 {[%emt 0:01:39]} 14. Ned4 {[%emt 0:06:39]} Nxd3+ {[%emt 0:10:04]} 15. cxd3 {[%emt 0:00:05]} Bd7 {[%emt 0:00:33]} 16. Kb1 {[%emt 0:00:42]} Na6 {[%emt 0:00:43]} 17. g4 {[%emt 0:01:05]} a4 {[%emt 0:02:40]} 18. f5 {[%emt 0:07:26]} Rfc8 {[%emt 0:03:56]} 19. Qf4 {[%emt 0:09:10]} a3 {[%emt 0:03:10]} 20. f6 {[%emt 0:01:36]} Qf8 {[%emt 0:01:09]} 21. b3 {[%emt 0:00:41]} Rc7 {[%emt 0:05:15]} 22. h4 {[%emt 0:03:42]} Rac8 {[%emt 0:05:27]} 23. h5 {[%emt 0:03:02]} Be8 {[%emt 0:08:38]} 24. g5 {[%emt 0:07:56]} Nc5 {[%emt 0:01:38]} 25. g6 {[%emt 0:18:16]} fxg6 {[%emt 0:03:33]} 26. Ng5 {[%emt 0:02:27]} gxf6 {[%emt 0:09:50]} 27. Ngxe6 {[%emt 0:01:32]} Nxe6 {[%emt 0:00:04]} 28. Nxe6 {[%emt 0:00:02]} Rc2 {[%emt 0:00:30]} 29. Nxf8 {[%emt 0:14:01]} Rb2+ {[%emt 0:00:31]} 30. Ka1 {[%emt 0:00:02]} Rcc2 {[%emt 0:00:05]} 31. Qd4 {[%emt 0:02:39]} Rxa2+ {[%emt 0:00:06]} 32. Kb1 {[%emt 0:00:03]} Rcb2+ {[%emt 0:00:10]} 33. Qxb2 {[%emt 0:00:04]} Rxb2+ {[%emt 0:00:05]} 34. Ka1 {[%emt 0:00:15]} Kxf8 {[%emt 0:00:05]} 35. exf6 {[%emt 0:03:27]} Rxb3 {[%emt 0:00:08]} 36. Rb1 {[%emt 0:01:15]} Rxb1+ {[%emt 0:04:58]} 37. Rxb1 {[%emt 0:00:02]} gxh5 {[%emt 0:00:07]} 38. Rxb4 {[%emt 0:00:04]} Kf7 {[%emt 0:00:31]} 39. Rf4 {[%emt 0:00:38]} Bb5 {[%emt 0:00:32]} 40. Rf3 {[%emt 0:00:00]} Bd7 {[%emt 0:00:00]} 41. Ka2 {[%emt 0:00:35]} h4 {[%emt 0:01:27]} 42. Kxa3 {[%emt 0:00:12]} h3 {[%emt 0:00:04]} 43. Rf2 {[%emt 0:00:26]} h5 {[%emt 0:01:45]} 44. Kb4 {[%emt 0:00:10]} d4 {[%emt 0:03:05]} 45. Kc5 {[%emt 0:00:20]} Bc8 {[%emt 0:00:13]} 46. Kxd4 {[%emt 0:06:24]} Bb7 {[%emt 0:02:38]} 47. Rh2 {[%emt 0:03:02]} Kxf6 {[%emt 0:00:10]} 48. Rxh3 {[%emt 0:00:04]} Kg5 {[%emt 0:00:27]} 49. Rg3+ {[%emt 0:01:30]} Kf4 {[%emt 0:00:17]} 50. Rg7 {[%emt 0:00:15]} Bf3 {[%emt 0:00:48]} 51. Rf7+ {[%emt 0:02:39]} Kg3 {[%emt 0:00:11]} 52. Ke3 {[%emt 0:00:50]} Bg4 {[%emt 0:00:06]} 53. Rf1 {[%emt 0:01:18]} Bh3 {[%emt 0:01:33]} 54. Rf3+ {[%emt 0:04:13]} Kg2 {[%emt 0:00:18]} 55. d4 {[%emt 0:10:03]} Bg4 {[%emt 0:11:11]} 56. Rf2+ {[%emt 0:00:28]} Kg3 {[%emt 0:00:19]} 57. Rf1 {[%emt 0:00:20]} Kg2 {[%emt 0:01:32]} 58. Rf4 {[%emt 0:00:32]} Kg3 {[%emt 0:01:21]} 59. d5 {[%emt 0:00:48]} h4 {[%emt 0:02:13]} 60. Rxg4+ {[%emt 0:00:54]} Kxg4 {[%emt 0:00:04]} 61. d6 {[%emt 0:00:03]} h3 {[%emt 0:00:58]} 62. Kf2 {[%emt 0:00:08]} Kf4 {[%emt 0:00:27]} 63. d7 {[%emt 0:00:03]} Kg4 {[%emt 0:00:07]} 64. d8=Q {[%emt 0:00:08]} h2 {[%emt 0:00:57]} 65. Kg2 {[%emt 0:00:06]} Kf4 {[%emt 0:00:15]} 66. Qd5 {[%emt 0:00:17]} h1=Q+ {[%emt 0:00:45]} 67. Kxh1 {[%emt 0:00:05]} Kg3 {[%emt 0:00:07]} 68. Qf5 {[%emt 0:00:32]} Kh4 {[%emt 0:00:05]} 69. Qg6 {[%emt 0:00:05]} Kh3 {[%emt 0:00:04]} 70. Kg1 {[%emt 0:00:08]} Kh4 {[%emt 0:00:05]} 71. Kf2 {[%emt 0:00:03]} Kh3 {[%emt 0:00:06]} 72. Qg3# {[%emt 0:00:04]} 1-0

[Event "EYCC Girls U12 2018"]
[Site "Riga"]
[Date "2018.08.29"]
[Round "9"]
[White "Karmanova, Olga Dm"]
[Black "Tarasenka, Aliaksandra"]
[Result "1/2-1/2"]
[ECO "C91"]
[WhiteElo "1730"]
[BlackElo "1747"]
[Annotator "NA"]
[PlyCount "95"]
[EventDate "2018.08.20"]
[EventType "swiss"]
[EventCountry "LAT"]
[SourceTitle "playchess.com"]
[Source "ChessBase"]
[SourceQuality "1"]
[TimeControl "40/5400+30:1800+30"]

1. Nf3 {[%emt 0:00:00]} Nc6 {[%emt 0:00:00]} 2. e4 {[%emt 0:01:55]} e5 {[%emt 0:03:37]} 3. Bb5 {[%emt 0:00:26]} a6 {[%emt 0:02:01]} 4. Ba4 {[%emt 0:00:10]} Be7 {[%emt 0:07:09]} 5. c3 {[%emt 0:03:04]} b5 {[%emt 0:03:10]} 6. Bb3 {[%emt 0:00:18]} Nf6 {[%emt 0:05:09]} 7. O-O {[%emt 0:05:38]} O-O {[%emt 0:03:25]} 8. Re1 {[%emt 0:01:20]} d6 {[%emt 0:03:14]} 9. d4 {[%emt 0:00:51]} Bg4 {[%emt 0:04:14]} 10. Be3 {[%emt 0:05:54]} Qd7 {[%emt 0:05:04]} 11. h3 {[%emt 0:06:18]} Bh5 {[%emt 0:01:05]} 12. dxe5 {[%emt 0:03:30]} Bxf3 {[%emt 0:05:25]} 13. Qxf3 {[%emt 0:00:38]} Nxe5 {[%emt 0:00:53]} 14. Qe2 {[%emt 0:00:55]} Rfe8 {[%emt 0:06:11]} 15. Nd2 {[%emt 0:03:10]} Bf8 {[%emt 0:04:34]} 16. Bg5 {[%emt 0:02:36]} Qe7 {[%emt 0:05:04]} 17. Rad1 {[%emt 0:04:37]} h6 {[%emt 0:03:39]} 18. Bh4 {[%emt 0:01:51]} g5 {[%emt 0:04:01]} 19. Bg3 {[%emt 0:00:22]} Ng6 {[%emt 0:01:11]} 20. Bc2 {[%emt 0:02:28]} Bg7 {[%emt 0:02:40]} 21. Nf3 {[%emt 0:00:34]} Nh5 {[%emt 0:04:39]} 22. Nd4 {[%emt 0:03:43]} Nhf4 {[%emt 0:00:30]} 23. Bxf4 {[%emt 0:00:16]} Nxf4 {[%emt 0:00:19]} 24. Qf3 {[%emt 0:00:55]} Bxd4 {[%emt 0:02:58]} 25. cxd4 {[%emt 0:00:11]} Rad8 {[%emt 0:07:16]} 26. h4 {[%emt 0:08:22]} c5 {[%emt 0:02:21]} 27. e5 {[%emt 0:00:56]} cxd4 {[%emt 0:02:26]} 28. Qe4 {[%emt 0:03:47]} d3 {[%emt 0:01:19]} 29. Bxd3 {[%emt 0:01:54]} Nxd3 {[%emt 0:00:26]} 30. Rxd3 {[%emt 0:01:00]} dxe5 {[%emt 0:02:36]} 31. Rde3 {[%emt 0:02:22]} Kg7 {[%emt 0:01:25]} 32. hxg5 {[%emt 0:01:01]} hxg5 {[%emt 0:00:14]} 33. Rh3 {[%emt 0:01:10]} Rh8 {[%emt 0:00:51]} 34. Rxh8 {[%emt 0:00:10]} Kxh8 {[%emt 0:00:51]} 35. Re3 {[%emt 0:00:58]} Kg7 {[%emt 0:00:47]} 36. Qxe5+ {[%emt 0:00:44]} Qxe5 {[%emt 0:00:04]} 37. Rxe5 {[%emt 0:00:08]} Rd1+ {[%emt 0:01:04]} 38. Kh2 {[%emt 0:00:23]} Rd2 {[%emt 0:01:03]} 39. Rxg5+ {[%emt 0:00:00]} Kf8 {[%emt 0:00:00]} 40. Rg3 {[%emt 0:00:00]} Rxf2 {[%emt 0:00:00]} 41. Ra3 {[%emt 0:01:30]} Rxb2 {[%emt 0:09:53]} 42. Rxa6 {[%emt 0:00:14]} b4 {[%emt 0:00:40]} 43. Ra4 {[%emt 0:00:42]} Kg7 {[%emt 0:00:54]} 44. Kg3 {[%emt 0:00:21]} Kg6 {[%emt 0:02:07]} 45. Kf3 {[%emt 0:00:54]} f6 {[%emt 0:01:28]} 46. g3 {[%emt 0:01:12]} b3 {[%emt 0:01:48]} 47. axb3 {[%emt 0:00:12]} Rxb3+ {[%emt 0:00:04]} 48. Kg4 {[%emt 0:00:16]} 1/2-1/2